bitfinex-derivatives/quotes_SOLF0:USTF0_20260129
["timestamp","ask_amount","ask_price","bid_price","bid_amount"]
[1769683746625,2.53755509,123.11,123.08,3.36481633]
[1769683747427,2.53755509,123.1,123.06,10.84878873]
[1769683747830,9.85955509,123.11,123.06,10.84878873]
[1769683748140,9.85955509,123.11,123.06,3.24565177]
[1769683751129,7.322,123.11,123.06,3.24565177]
[1769683751334,9.85955509,123.11,123.06,3.24565177]
[1769683751534,13.18778728,123.11,123.06,3.24565177]
[1769683751736,2.53755509,123.1,123.06,3.24565177]
[1769683752140,5.86578728,123.1,123.05,7.60313696]
[1769683752335,2.53755509,123.09,123.05,3.24565177]
[1769683754151,2.53755509,123.08,123.03,18.17528873]
[1769683754442,5.86578728,123.07,123.02,10.84878873]
[1769683754650,2.53755509,123.06,123.02,3.24565177]
[1769683755240,2.53755509,123.05,123.02,3.24565177]
[1769683755639,5.86578728,123.06,123.02,3.24565177]
[1769683758646,5.86578728,123.07,123.0,2.53755509]
[1769683759150,3.32823219,123.07,122.99,7.60313696]
[1769683759445,3.32823219,123.07,123.01,2.53755509]
[1769683759644,3.32823219,123.07,123.02,2.53755509]
[1769683760546,3.32823219,123.07,123.02,4.17122531]
[1769683763147,3.32823219,123.07,123.03,2.53755509]
[1769683763348,3.32823219,123.07,123.03,4.17122502]
[1769683765447,3.32823219,123.07,123.03,1.63366993]
[1769683765651,3.32823219,123.07,123.02,1.63381233]
[1769683765847,3.32823219,123.07,123.02,4.17136742]
[1769683767152,3.32823219,123.07,123.02,1.63381233]
[1769683767354,3.32823219,123.07,123.02,4.17136742]
[1769683768247,3.32823219,123.07,123.04,2.53755509]
[1769683768442,3.32823219,123.07,123.03,2.53755509]
[1769683769350,3.32823219,123.07,123.02,1.63381233]
[1769683769551,3.32823219,123.07,123.03,2.53755509]
[1769683770152,3.32823219,123.07,123.02,1.63381233]
[1769683770349,3.32823219,123.07,123.03,2.53755509]
[1769683771352,3.32823219,123.07,123.02,1.63381233]
[1769683771353,3.32823219,123.07,123.02,4.17136742]
[1769683771744,128.5191,123.13,123.04,4.17322173]
[1769683771745,10.86207253,123.1,123.04,4.17322173]
[1769683771946,3.53967253,123.09,123.04,4.17322173]
[1769683777749,3.53967253,123.09,123.05,1.63566615]
[1769683777947,3.53967253,123.09,123.05,4.17322124]
[1769683780449,7.3224,123.1,123.05,4.17322124]
[1769683780646,10.86207253,123.1,123.05,4.17322124]
[1769683780851,2.53755509,123.12,123.07,2.53755509]
[1769683780852,3.53967253,123.11,123.07,2.53755509]
[1769683781052,3.53967253,123.11,123.06,4.17322102]
[1769683782759,3.53967253,123.1,123.05,2.53755509]
[1769683783553,3.53967253,123.1,123.04,11.50025913]
[1769683784756,6.07856588,123.1,123.04,11.50025913]
[1769683785365,6.07856588,123.1,123.05,1.63566556]
[1769683786863,2.53889335,123.09,123.05,1.63566556]
[1769683788860,6.07856588,123.09,123.05,1.63566556]
[1769683789062,2.53889335,123.08,123.03,8.96226535]
[1769683789365,2.53889335,123.08,123.04,1.63566528]
[1769683789565,6.07856588,123.09,123.04,1.63566528]
[1769683790364,13.40166588,123.09,123.04,1.63566528]
[1769683791762,10.86277253,123.09,123.04,1.63566528]
[1769683791967,13.40166588,123.09,123.04,1.63566528]
[1769683792767,2.53889335,123.08,123.04,1.63566528]
[1769683793567,13.40166588,123.09,123.04,1.63566528]
[1769683794765,6.07856588,123.09,123.04,1.63566528]
[1769683797964,3.53967253,123.09,123.04,1.63566528]
[1769683799972,3.53967253,123.09,123.04,8.96156528]
[1769683801868,6.07856588,123.09,123.04,8.96156528]
[1769683804373,6.07856588,123.09,123.03,10.14203031]
[1769683804374,3.37769233,123.11,123.06,4.17077803]
[1769683804565,3.37769233,123.11,123.07,1.63188468]
[1769683809679,7.3214,123.12,123.08,1.632824]
[1769683810080,10.77246609,123.12,123.08,1.632824]
[1769683811783,3.45106609,123.12,123.08,1.632824]
[1769683814388,3.45106609,123.12,123.08,4.17171735]
[1769683814680,2.53889335,123.14,123.08,4.17171735]
[1769683814875,3.45106609,123.13,123.08,4.17171735]
[1769683815981,3.45106609,123.13,123.08,1.632824]
[1769683816589,3.45106609,123.13,123.09,7.3229]
[1769683823286,5.98995944,123.13,123.09,7.3229]
[1769683824586,3.45106609,123.13,123.09,7.3229]
[1769683829793,2.53889335,123.14,123.09,8.95621508]
[1769683830291,5.9051019,123.14,123.09,8.95621508]
[1769683833793,5.9051019,123.14,123.1,7.3224]
[1769683834698,5.9051019,123.14,123.09,1.63331508]
[1769683835496,3.35820252,123.16,123.11,1.63355192]
[1769683835691,5.89709587,123.16,123.11,1.63355192]
[1769683835892,3.35820252,123.15,123.11,1.63355192]
[1769683836300,5.89709587,123.15,123.1,7.3223]
[1769683837696,5.89709587,123.15,123.09,8.95645188]
[1769683843407,3.35820252,123.15,123.1,1.63355163]
[1769683843606,5.8948491,123.15,123.1,1.63355163]
[1769683844613,13.2143491,123.15,123.1,1.63355163]
[1769683846824,5.8948491,123.15,123.1,1.63355163]
[1769683847709,3.35820252,123.15,123.1,1.63355163]
[1769683848819,5.8948491,123.15,123.1,1.63355163]
[1769683849812,5.8948491,123.15,123.1,8.95575163]
[1769683852720,5.8948491,123.15,123.11,7.3218]
[1769683861824,3.42353415,123.17,123.12,1.63183908]
[1769683863524,3.42353415,123.17,123.13,7.3205]
[1769683866328,5.96018073,123.17,123.13,7.3205]
[1769683867533,2.53664658,123.17,123.13,8.95233892]
[1769683867726,2.53664658,123.17,123.14,1.63183892]
[1769683868226,2.53664658,123.17,123.13,7.3205]
[1769683868424,5.96018073,123.18,123.13,7.3205]
[1769683869531,3.42353415,123.18,123.13,7.3205]
[1769683869720,5.96018073,123.18,123.13,7.3205]
[1769683870727,5.96018073,123.18,123.13,8.95233885]
[1769683870928,5.96018073,123.2,123.15,1.63183885]
[1769683871333,3.42353415,123.19,123.15,1.63183885]
[1769683871729,262.1401,123.25,123.15,1.63183885]
[1769683871730,3.42353415,123.22,123.15,1.63183885]
[1769683871933,5.96018073,123.2,123.15,8.95113885]
[1769683872132,2.53664658,123.19,123.15,8.95113885]
[1769683873034,3.42353415,123.21,123.16,8.9504388]
[1769683873331,5.96018073,123.21,123.16,8.9504388]
[1769683877736,5.96018073,123.21,123.17,7.3182]
[1769683878535,5.96018073,123.2,123.17,7.3182]
[1769683879036,3.42353415,123.2,123.17,7.3182]
[1769683880334,2.53664658,123.21,123.17,7.3182]
[1769683880542,5.96018073,123.21,123.17,7.3182]
[1769683882940,3.42353415,123.23,123.17,8.95003857]
[1769683883239,2.53664658,123.2,123.17,8.95003857]
[1769683887242,2.53664658,123.21,123.17,8.95003857]
[1769683893638,5.96018073,123.22,123.17,8.95003857]
[1769683895644,3.42353415,123.22,123.17,8.95003857]
[1769683896745,5.96018073,123.22,123.17,8.95003857]
[1769683898542,3.42353415,123.22,123.17,8.95003857]
[1769683900542,2.53664658,123.23,123.18,1.63145842]
[1769683900947,6.02715885,123.24,123.18,1.63145842]
[1769683901248,3.49051227,123.24,123.18,8.94905842]
[1769683901448,6.02715885,123.24,123.18,8.94905842]
[1769683902853,2.53664658,123.22,123.18,1.63145842]
[1769683903550,6.02715885,123.23,123.18,1.63145842]
[1769683905750,6.02427217,123.23,123.18,1.63145842]
[1769683908853,3.49051227,123.23,123.18,1.63145842]
[1769683910453,3.49051227,123.23,123.18,4.16521832]
[1769683910655,13.33787217,123.25,123.19,1.63145826]
[1769683910955,13.33787217,123.25,123.19,4.16521816]
[1769683911156,3.49051227,123.24,123.19,4.16521816]
[1769683911853,3.49051227,123.24,123.19,1.63145826]
[1769683914555,3.49051227,123.24,123.2,4.1652181]
[1769683914849,3.49051227,123.26,123.21,1.6314582]
[1769683916055,6.02427217,123.26,123.21,1.6314582]
[1769683918655,3.49051227,123.26,123.21,1.6314582]
[1769683919156,6.02427217,123.26,123.21,1.6314582]
[1769683919655,3.49051227,123.26,123.21,11.4810181]
[1769683920157,3.49051227,123.26,123.21,8.9472582]
[1769683921057,3.49051227,123.26,123.22,7.3153]
[1769683921458,6.05269154,123.28,123.22,8.94635371]
[1769683921757,3.51893164,123.28,123.23,8.94555371]
[1769683922261,6.05269154,123.28,123.23,8.94555371]
[1769683922556,6.05269154,123.28,123.23,1.63105371]
[1769683922852,3.51893164,123.29,123.24,1.6310537]
[1769683923247,3.51893164,123.29,123.24,8.9451537]
[1769683923652,3.51893164,123.29,123.24,11.4789136]
[1769683923858,2.5337599,123.32,123.26,3.38444383]
[1769683924249,2.5337599,123.31,123.26,3.38444383]
[1769683924754,2.5337599,123.31,123.26,10.69734383]
[1769683925758,6.05269154,123.31,123.26,10.69734383]
[1769683927753,3.51893164,123.31,123.26,10.69734383]
[1769683927960,6.05269154,123.31,123.26,10.69734383]
[1769683928761,3.51893164,123.31,123.26,3.38444383]
[1769683928957,6.05269154,123.31,123.26,3.38444383]
[1769683930363,6.05269154,123.31,123.26,10.69724383]
[1769683931153,3.51893164,123.3,123.24,3.38444383]
[1769683931361,3.51893164,123.29,123.23,3.38444383]
[1769683931658,6.05269154,123.28,123.23,3.38444383]
[1769683931860,2.5337599,123.26,123.21,3.38444383]
[1769683932362,2.5337599,123.25,123.21,10.69984383]
[1769683936464,2.5337599,123.26,123.21,10.69984383]
[1769683939058,2.5337599,123.26,123.21,3.38444383]
[1769683941766,6.05269154,123.27,123.21,3.38444383]
[1769683942363,6.05269154,123.27,123.21,10.70024383]
[1769683945065,10.83003164,123.29,123.23,3.38444383]
[1769683945363,3.41068344,123.28,123.23,3.38444383]
[1769683947869,5.94444334,123.28,123.23,3.38444383]
[1769683948167,3.41068344,123.28,123.23,3.38444383]
[1769683948756,5.94444334,123.28,123.23,3.38444383]
[1769683949962,3.41068344,123.27,123.23,3.38444383]
[1769683951866,3.45860811,123.24,123.2,3.451151]
[1769683952264,3.45860811,123.24,123.18,13.3025109]
[1769683952464,5.99236801,123.24,123.18,13.3025109]
[1769683952867,5.99236801,123.24,123.19,3.451151]
[1769683953168,3.45860811,123.24,123.19,3.451151]
[1769683955077,5.99236801,123.24,123.19,3.451151]
[1769683955374,13.30646801,123.24,123.19,3.451151]
[1769683956169,10.77270811,123.24,123.19,3.451151]
[1769683963574,113.742,123.28,123.19,3.451151]
[1769683963778,3.45860811,123.27,123.22,2.5337599]
[1769683963972,3.45860811,123.27,123.23,2.5337599]
[1769683964169,3.45860811,123.27,123.22,2.5337599]
[1769683964676,3.45860811,123.31,123.25,2.5337599]
[1769683965077,3.45860811,123.29,123.25,2.5337599]
[1769683965381,3.45860811,123.29,123.24,2.5337599]
[1769683965583,3.45860811,123.29,123.24,2.53087486]
[1769683966683,3.45860811,123.29,123.25,2.53087486]
[1769683968483,3.45860811,123.28,123.24,2.53087486]
[1769683969677,3.45860811,123.28,123.23,5.98202586]
[1769683979887,3.45860811,123.28,123.24,2.53087486]
[1769683981089,3.45860811,123.28,123.23,3.451151]
[1769683981090,3.45860811,123.28,123.23,5.98202586]
[1769683981292,10.52810152,123.27,123.21,18.10680452]
[1769683981498,10.52810152,123.27,123.23,2.53087486]
[1769683985403,10.52810152,123.27,123.22,5.74576735]
[1769683985802,10.52810152,123.27,123.22,3.21489249]
[1769683986605,10.52880152,123.26,123.22,3.21489249]
[1769683988708,3.21580152,123.26,123.22,3.21489249]
[1769683989612,3.21580152,123.26,123.21,2.53087486]
[1769683989794,3.21580152,123.26,123.2,2.53087486]
[1769683990107,3.21580152,123.26,123.2,5.74576735]
[1769683990502,3.21580152,123.26,123.21,2.53087486]
[1769683991005,3.21580152,123.26,123.2,5.74576735]
[1769683992607,3.21580152,123.24,123.19,14.89281203]
[1769683995011,3.21580152,123.24,123.19,10.53169249]
[1769683995310,5.74667638,123.24,123.19,10.53169249]
[1769683996112,3.21580152,123.24,123.19,10.53169249]
[1769683997511,13.06077638,123.24,123.19,3.21489249]
[1769683999712,10.52990152,123.24,123.19,3.21489249]
[1769684006422,3.33727611,123.23,123.18,17.42448689]
[1769684006719,3.33727611,123.23,123.18,13.31386671]
[1769684008619,3.33727611,123.23,123.18,3.46539185]
[1769684008816,3.33727611,123.22,123.18,3.46539185]
[1769684009023,3.33727611,123.22,123.17,7.3182]
[1769684009223,3.33727611,123.22,123.16,337.37506671]
[1769684010323,13.18365097,123.22,123.16,324.06]
[1769684010620,5.86815097,123.21,123.16,324.06]
[1769684012324,3.33727611,123.21,123.16,324.06]
[1769684012521,3.33727611,123.21,123.16,327.52972122]
[1769684014128,3.33727611,123.21,123.16,330.06059608]
[1769684017127,3.33727611,123.21,123.16,327.52972122]
[1769684018927,3.33727611,123.21,123.16,330.06059608]
[1769684024137,3.33727611,123.21,123.16,337.37939608]
[1769684027334,3.33727611,123.21,123.17,2.53087486]
[1769684027540,3.33727611,123.21,123.17,6.00362477]
[1769684032346,3.33727611,123.21,123.17,3.46972122]
[1769684034246,3.33727611,123.21,123.17,6.00362477]
[1769684038756,10.65317611,123.21,123.17,3.46972122]
[1769684039756,10.65317611,123.21,123.17,6.00362477]
[1769684039949,3.33727611,123.21,123.17,6.00362477]
[1769684046363,3.33727611,123.21,123.17,3.46972122]
[1769684046662,3.33727611,123.21,123.17,6.00362477]
[1769684059770,3.43054997,123.24,123.17,3.46972122]
[1769684059961,12.61263341,123.26,123.17,7.58174307]
[1769684060166,5.02961297,123.26,123.2,2.53390355]
[1769684060469,5.02961297,123.26,123.21,2.53390355]
[1769684061472,12.34331297,123.25,123.21,2.53390355]
[1769684064476,12.34331297,123.25,123.22,3.55e-06]
[1769684069978,12.34331297,123.25,123.2,2.53390355]
[1769684075883,5.02961297,123.25,123.21,2.53390355]
[1769684076078,5.02961297,123.25,123.22,2.53390355]
[1769684076280,5.02961297,123.25,123.21,2.53390355]
[1769684077576,7.313,123.26,123.22,2.53390355]
[1769684077783,5.02961297,123.27,123.23,2.53390355]
[1769684078381,5.02961297,123.27,123.22,2.53390355]
[1769684079386,12.34221297,123.27,123.22,2.53390355]
[1769684082085,12.34221297,123.27,123.23,2.53390355]
[1769684084482,5.02961297,123.26,123.23,2.53390355]
[1769684084784,5.02961297,123.26,123.21,9.84950355]
[1769684086693,5.02961297,123.26,123.22,2.53390355]
[1769684087186,5.02961297,123.26,123.23,2.53390355]
[1769684087578,5.02961297,123.26,123.23,2.5314613]
[1769684090187,5.02961297,123.26,123.22,2.5314613]
[1769684091389,5.02961297,123.26,123.21,2.5314613]
[1769684092691,5.02961297,123.26,123.22,2.5314613]
[1769684093988,12.34251297,123.26,123.21,2.5314613]
[1769684094793,5.02961297,123.26,123.21,2.5314613]
[1769684095785,5.02961297,123.26,123.21,9.8472613]
[1769684096297,5.02961297,123.26,123.21,2.5314613]
[1769684096497,5.02961297,123.25,123.21,2.5314613]
[1769684097190,5.02961297,123.25,123.2,9.8478613]
[1769684097798,5.02961297,123.24,123.19,17.44437405]
[1769684099101,5.02961297,123.24,123.19,9.8484613]
[1769684100298,5.02961297,123.24,123.19,17.44437405]
[1769684103799,5.02961297,123.24,123.19,9.8484613]
[1769684105608,5.02961297,123.24,123.19,7.317]
[1769684109801,5.02961297,123.24,123.19,9.8484613]
[1769684110306,5.02961297,123.24,123.19,17.44437405]
[1769684110506,5.02961297,123.24,123.19,9.8484613]
[1769684111008,5.02961297,123.24,123.19,17.44437405]
[1769684111205,5.02961297,123.24,123.19,9.8484613]
[1769684112002,12.34371297,123.24,123.19,9.8484613]
[1769684113009,5.02961297,123.23,123.19,9.8484613]
[1769684114117,5.02961297,123.23,123.19,7.317]
[1769684114808,5.02961297,123.23,123.19,9.8484613]
[1769684116109,5.02961297,123.23,123.19,7.317]
[1769684117209,5.02961297,123.23,123.19,9.8484613]
[1769684123110,5.02961297,123.23,123.19,2.5314613]
[1769684123314,5.02961297,123.23,123.18,7.3176]
[1769684125511,5.02961297,123.23,123.18,14.91351275]
[1769684127014,5.02961297,123.23,123.18,7.3176]
[1769684128719,5.02961297,123.23,123.18,17.44497405]
[1769684129018,14.87467427,123.25,123.19,7.3169]
[1769684129314,14.87467427,123.25,123.19,9.8483613]
[1769684129509,12.34321297,123.25,123.19,9.8483613]
[1769684130918,5.02961297,123.24,123.19,9.8483613]
[1769684135527,5.02961297,123.24,123.2,2.5314613]
[1769684147740,5.02961297,123.24,123.19,9.8483613]
[1769684149545,5.02961297,123.24,123.19,9.84997235]
[1769684157046,5.02961297,123.24,123.19,17.4458851]
[1769684157349,7.3136,123.25,123.19,17.4458851]
[1769684157549,7.3136,123.25,123.2,2.53307235]
[1769684157743,12.34321297,123.25,123.2,2.53307235]
[1769684160348,12.34321297,123.25,123.2,9.84947235]
[1769684161852,5.02961297,123.25,123.2,9.84947235]
[1769684162152,5.02961297,123.25,123.21,7.3158]
[1769684174555,5.02961297,123.25,123.2,7.3164]
[1769684175455,5.02961297,123.25,123.2,9.84947235]
[1769684175853,5.02961297,123.25,123.2,7.3164]
[1769684178460,5.02961297,123.25,123.2,9.84947235]
[1769684179158,5.02961297,123.25,123.2,7.3164]
[1769684180460,5.02961297,123.23,123.18,17.4460851]
[1769684182264,5.02961297,123.23,123.19,9.85007235]
[1769684194771,5.02961297,123.23,123.19,7.317]
[1769684194972,5.02961297,123.23,123.19,9.85007235]
[1769684200072,5.02961297,123.23,123.19,7.317]
[1769684200275,5.02961297,123.23,123.19,9.85007235]
[1769684208576,12.34321297,123.25,123.19,9.85007235]
[1769684209576,12.34321297,123.25,123.19,9.84983564]
[1769684209774,12.34321297,123.25,123.2,9.84923564]
[1769684212675,12.34321297,123.25,123.2,7.3164]
[1769684218279,12.34321297,123.25,123.2,9.84923564]
[1769684232397,12.34321297,123.25,123.2,7.3164]
[1769684232591,12.34321297,123.25,123.2,9.84923564]
[1769684232993,5.02961297,123.24,123.19,10.12874839]
[1769684233193,5.02961297,123.24,123.18,17.44594839]
[1769684233395,5.02961297,123.24,123.19,2.53283564]
[1769684238000,12.34371297,123.24,123.18,14.91311275]
[1769684238200,12.34371297,123.24,123.19,2.53283564]
[1769684239400,12.34371297,123.24,123.2,2.53283564]
[1769684245508,12.34371297,123.24,123.18,14.91311275]
[1769684245808,5.02961297,123.23,123.19,2.53283564]
[1769684249403,12.34311297,123.26,123.2,9.84933564]
[1769684249609,5.02961297,123.25,123.2,9.84933564]
[1769684249809,5.02961297,123.25,123.21,2.53283564]
[1769684251899,5.02961297,123.27,123.23,2.53283564]
[1769684252808,5.02961297,123.27,123.22,2.53283564]
[1769684254214,5.02961297,123.26,123.2,7.3164]
[1769684254416,5.02961297,123.26,123.21,2.53283564]
[1769684254815,12.34301297,123.26,123.21,2.53283564]
[1769684257616,5.02961297,123.25,123.21,2.53283564]
[1769684258514,12.34311297,123.25,123.21,2.53283564]
[1769684260317,12.34311297,123.25,123.2,2.53283564]
[1769684262018,5.02961297,123.24,123.2,2.53283564]
[1769684271122,5.02961297,123.24,123.19,7.317]
[1769684271319,5.02961297,123.24,123.2,2.53283564]
[1769684271521,5.02961297,123.24,123.2,2.53273948]
[1769684278326,5.02961297,123.24,123.21,2.53273948]
[1769684279330,5.02961297,123.24,123.2,2.53273948]
[1769684289838,5.02961297,123.24,123.21,2.53273948]
[1769684290028,5.02961297,123.24,123.2,2.53273948]
[1769684292640,5.02961297,123.24,123.18,14.91760065]
[1769684292840,5.02961297,123.24,123.2,2.53273948]
[1769684299854,5.02961297,123.24,123.19,2.53273948]
[1769684302250,5.02961297,123.24,123.19,10.13274013]
[1769684302556,5.02961297,123.24,123.2,2.53273948]
[1769684303652,5.02961297,123.24,123.19,10.13274013]
[1769684306049,12.34371297,123.24,123.19,2.53273948]
[1769684328384,12.34431297,123.23,123.18,17.45034013]
[1769684331483,12.34431297,123.23,123.19,2.53273948]
[1769684333591,12.34431297,123.23,123.19,2.53322571]
[1769684338694,5.02961297,123.22,123.19,2.53322571]
[1769684343497,5.02961297,123.22,123.18,17.45082636]
[1769684344898,5.02961297,123.22,123.19,2.53322571]
[1769684346799,5.02961297,123.22,123.19,9.85022571]
[1769684352208,5.02961297,123.22,123.2,7.3164]
[1769684352602,5.02961297,123.22,123.2,9.84962571]
[1769684353708,5.02961297,123.22,123.2,7.3164]
[1769684361115,5.02961297,123.24,123.2,7.3164]
[1769684364019,5.02961297,123.24,123.19,9.85022571]
[1769684364210,5.02961297,123.24,123.19,17.45022636]
[1769684364410,5.02961297,123.24,123.19,9.85022571]
[1769684365118,5.02961297,123.24,123.19,17.45022636]
[1769684365618,5.02961297,123.24,123.19,9.85022571]
[1769684366318,5.02961297,123.24,123.19,17.45022636]
[1769684366923,5.02961297,123.24,123.19,9.85022571]
[1769684367818,5.02961297,123.24,123.19,7.317]
[1769684372815,5.02961297,123.24,123.19,14.91700065]
[1769684374124,5.02961297,123.24,123.19,17.45022636]
[1769684374317,5.02961297,123.24,123.19,9.85022571]
[1769684376017,5.02961297,123.24,123.19,7.317]
[1769684376324,5.02961297,123.24,123.19,14.91700065]
[1769684377224,5.02961297,123.24,123.19,7.317]
[1769684379624,5.02961297,123.24,123.19,14.91700065]
[1769684380429,5.02961297,123.24,123.19,7.317]
[1769684381628,5.02961297,123.24,123.19,14.91700065]
[1769684382528,5.02961297,123.24,123.19,7.317]
[1769684383434,5.02961297,123.24,123.19,14.91700065]
[1769684383729,5.02961297,123.24,123.19,7.317]
[1769684384128,5.02961297,123.24,123.19,14.91700065]
[1769684384325,5.02961297,123.23,123.19,7.60000065]
[1769684384529,5.02961297,123.23,123.18,17.45082636]
[1769684391233,5.02961297,123.23,123.18,14.91760065]
[1769684391434,5.02961297,123.23,123.18,17.45082636]
[1769684392234,5.02961297,123.23,123.19,7.60000065]
[1769684393036,5.02961297,123.23,123.18,17.45082636]
[1769684393537,5.02961297,123.23,123.18,17.45068641]
[1769684400639,5.02961297,123.23,123.19,7.60000065]
[1769684401940,5.02961297,123.23,123.18,17.45068641]
[1769684403141,12.34431297,123.23,123.18,7.60000065]
[1769684403437,12.34431297,123.23,123.17,338.99820065]
[1769684403737,14.87739873,123.23,123.17,338.99820065]
[1769684403928,14.87739873,123.23,123.18,7.60000065]
[1769684404539,12.34431297,123.23,123.18,7.60000065]
[1769684404838,5.02961297,123.22,123.18,7.60000065]
[1769684405038,7.56269873,123.18,123.13,10.12788367]
[1769684405342,7.56269873,123.17,123.12,10.12788367]
[1769684406240,7.56269873,123.17,123.11,2.53308576]
[1769684406440,7.56269873,123.17,123.12,7.3212]
[1769684407642,5.02961297,123.17,123.12,9.85428576]
[1769684407831,5.02961297,123.17,123.11,2.53308576]
[1769684408036,5.02961297,123.17,123.12,2.53308576]
[1769684415749,5.02961297,123.17,123.12,9.85428576]
[1769684422165,5.02961297,123.17,123.12,7.3212]
[1769684422855,5.02961297,123.17,123.13,7.3206]
[1769684429271,7.56269873,123.17,123.13,7.3206]
[1769684430068,5.02961297,123.17,123.13,7.3206]
[1769684431973,7.56269873,123.17,123.13,7.3206]
[1769684434471,7.56269873,123.17,123.12,7.3211]
[1769684435165,5.02961297,123.17,123.12,7.3211]
[1769684437074,7.56269873,123.17,123.12,7.3211]
[1769684438071,5.02961297,123.17,123.12,9.85418576]
[1769684441374,5.02961297,123.17,123.12,7.3211]
[1769684443680,5.02961297,123.17,123.13,7.3206]
[1769684447283,5.02961297,123.21,123.16,2.53308576]
[1769684447782,7.56269873,123.2,123.16,7.3187]
[1769684448485,5.02961297,123.19,123.15,7.3194]
[1769684455686,5.02961297,123.18,123.11,10.12788367]
[1769684455890,7.56460938,123.17,123.11,2.53499641]
[1769684456096,7.56460938,123.17,123.1,12.66288008]
[1769684456797,7.56460938,123.17,123.1,2.53499641]
[1769684456986,7.56460938,123.17,123.12,7.3212]
[1769684459990,7.56460938,123.15,123.09,10.12788367]
[1769684460193,7.56460938,123.15,123.08,141.23228008]
[1769684460698,7.56460938,123.15,123.1,7.3224]
[1769684461599,5.02961297,123.14,123.1,7.3224]
[1769684462604,7.56460938,123.14,123.1,7.3224]
[1769684462903,7.56460938,123.13,123.09,7.3229]
[1769684463803,5.02961297,123.13,123.09,7.3229]
[1769684464301,5.02961297,123.13,123.1,7.3223]
[1769684468801,2.53499641,123.15,123.08,10.13943771]
[1769684468802,12.34811297,123.17,123.12,2.53499641]
[1769684469000,5.02961297,123.16,123.12,2.53499641]
[1769684470203,5.02961297,123.16,123.11,9.85679641]
[1769684482417,5.02961297,123.16,123.12,2.53499641]
[1769684482912,5.02961297,123.18,123.14,2.53499641]
[1769684484016,12.34731297,123.18,123.14,2.53499641]
[1769684487919,5.02961297,123.17,123.11,7.3218]
[1769684488123,5.02961297,123.17,123.13,2.53499641]
[1769684489925,5.02961297,123.17,123.14,2.53499641]
[1769684490425,5.02961297,123.19,123.15,2.53499641]
[1769684496225,5.02961297,123.17,123.13,2.53499641]
[1769684496431,5.02961297,123.17,123.12,2.53499641]
[1769684497131,5.02961297,123.16,123.1,9.85739641]
[1769684497331,5.02961297,123.15,123.09,10.13943771]
[1769684498334,5.02961297,123.15,123.09,17.46213771]
[1769684498836,5.02961297,123.15,123.1,2.53499641]
[1769684499434,5.02961297,123.15,123.09,17.46213771]
[1769684500539,5.02961297,123.15,123.09,14.9271413]
[1769684500840,5.02961297,123.14,123.09,14.9271413]
[1769684501034,5.02961297,123.14,123.09,7.3227]
[1769684501436,5.02961297,123.14,123.08,294.51943771]
[1769684501437,7.56460938,123.14,123.08,301.84303771]
[1769684501637,7.56460938,123.14,123.08,14.9280413]
[1769684501638,5.02961297,123.13,123.08,14.9280413]
[1769684502035,5.02961297,123.13,123.08,7.3236]
[1769684502431,5.02961297,123.13,123.07,17.46353771]
[1769684502746,5.02961297,123.12,123.06,10.13943771]
[1769684503040,5.02961297,123.12,123.06,2.53499641]
[1769684504444,12.35091297,123.12,123.06,9.85959641]
[1769684505138,12.35091297,123.12,123.06,7.3246]
[1769684505340,12.35091297,123.12,123.06,9.85959641]
[1769684506833,5.02961297,123.12,123.06,9.85959641]
[1769684510949,5.02961297,123.12,123.07,2.53499641]
[1769684513256,5.02961297,123.12,123.06,7.3246]
[1769684513452,5.02961297,123.12,123.07,2.53499641]
[1769684514551,5.02961297,123.12,123.07,9.85919641]
[1769684515653,5.02961297,123.12,123.07,9.86250118]
[1769684517851,5.02961297,123.12,123.07,7.3242]
[1769684520955,5.02961297,123.12,123.07,9.86250118]
[1769684524259,5.02961297,123.12,123.07,7.3242]
[1769684524552,5.02961297,123.12,123.07,9.86250118]
[1769684526959,5.02961297,123.12,123.07,7.3242]
[1769684527255,5.02961297,123.12,123.07,9.86250118]
[1769684527661,5.02961297,123.12,123.07,7.3242]
[1769684527856,5.02961297,123.12,123.07,9.86250118]
[1769684528363,5.02961297,123.12,123.08,2.53830118]
[1769684535065,5.02961297,123.12,123.09,2.53830118]
[1769684535268,12.34971297,123.14,123.1,2.53830118]
[1769684535764,5.02961297,123.14,123.1,2.53830118]
[1769684540273,5.02961297,123.14,123.11,2.53830118]
[1769684541670,5.02961297,123.14,123.09,7.3225]
[1769684541873,5.02961297,123.14,123.1,2.53830118]
[1769684544069,5.02961297,123.13,123.06,7.6044413]
[1769684544277,5.02961297,123.13,123.08,2.53830118]
[1769684544665,5.02961297,123.13,123.07,2.53830118]
[1769684545072,2.53830118,123.12,123.06,7.6044413]
[1769684545372,7.56791415,123.11,123.06,14.9287413]
[1769684545576,5.02961297,123.1,123.06,14.9287413]
[1769684545771,2.53830118,123.11,123.03,113.9605]
[1769684545772,5.02961297,123.07,123.03,7.6044413]
[1769684545973,7.56791415,123.05,122.98,10.12788367]
[1769684546179,5.02961297,123.05,122.99,2.53830118]
[1769684546879,7.56791415,123.05,122.99,9.86690118]
[1769684547075,5.02961297,123.05,122.99,9.86690118]